bitfinex-derivatives/quotes_SOLF0:USTF0_20250516
["timestamp","ask_amount","ask_price","bid_price","bid_amount"]
[1747406239693,1.8585,172.44,172.37,5.7994]
[1747406240794,5.7984,172.41,172.37,5.7994]
[1747406240997,1.8585,172.44,172.37,5.7994]
[1747406241202,12.41977649,172.44,172.3,12.51357649]
[1747406241398,5.7997,172.37,172.3,1.9523]
[1747406241697,12.41977649,172.44,172.3,1.9523]
[1747406241900,10.56127649,172.41,172.3,1.9523]
[1747406242696,10.56127649,172.38,172.28,1.8985]
[1747406243199,10.56127649,172.38,172.24,1.8213]
[1747406243403,10.56127649,172.38,172.24,3.7041]
[1747406243598,5.8011,172.33,172.3,5.8018]
[1747406244200,5.8011,172.33,172.3,5.8017]
[1747406244401,10.56127649,172.38,172.24,3.7041]
[1747406244703,10.56127649,172.38,172.32,5.801]
[1747406245001,10.56127649,172.38,172.24,3.7041]
[1747406245207,1.8436,172.4,172.32,5.8009]
[1747406245403,12.40487649,172.4,172.32,5.8009]
[1747406245802,12.40487649,172.4,172.26,10.56127649]
[1747406246002,1.8436,172.4,172.29,10.56127649]
[1747406246302,5.7989,172.39,172.29,10.56127649]
[1747406246497,10.56127649,172.43,172.29,10.56127649]
[1747406246698,5.7986,172.4,172.29,10.56127649]
[1747406246906,1.8585,172.44,172.37,5.7994]
[1747406247297,5.7987,172.4,172.36,5.7997]
[1747406247496,1.8585,172.44,172.29,10.56127649]
[1747406247902,5.799,172.39,172.35,5.8]
[1747406248204,1.8585,172.44,172.35,5.8]
[1747406248406,5.799,172.39,172.35,5.8]
[1747406248604,1.8585,172.44,172.35,5.8]
[1747406248804,10.56127649,172.43,172.34,5.8005]
[1747406249107,5.7997,172.37,172.34,5.8005]
[1747406249704,5.7999,172.36,172.33,5.8007]
[1747406250003,10.56127649,172.43,172.29,10.56127649]
[1747406250205,10.56127649,172.4,172.26,10.56127649]
[1747406250406,5.8004,172.35,172.32,5.8011]
[1747406251707,5.7999,172.36,172.32,5.8011]
[1747406251908,5.7999,172.36,172.33,5.8007]
[1747406252095,10.56127649,172.4,172.26,10.56127649]
[1747406252403,5.7989,172.39,172.36,5.7998]
[1747406252604,12.41977649,172.44,172.26,11.6062]
[1747406252605,1.8585,172.44,172.32,10.56127649]
[1747406252804,5.7982,172.41,172.33,5.7737]
[1747406253005,12.49767649,172.47,172.33,5.7737]
[1747406253600,10.56127649,172.51,172.38,10.56127649]
[1747406253804,5.4969,172.52,172.38,10.56127649]
[1747406254006,62.46,172.51,172.44,5.7969]
[1747406254500,62.46,172.51,172.41,10.56127649]
[1747406255203,62.46,172.51,172.41,12.53507649]
[1747406255506,62.46,172.51,172.42,1.8131]
[1747406256102,16.87759913,172.46,172.26,28.48359913]
[1747406256301,62.44,172.45,172.28,1.8131]
[1747406256806,5.7985,172.4,172.28,1.8131]
[1747406257006,68.2385,172.4,172.28,1.8131]
[1747406257205,62.44,172.4,172.37,5.7992]
[1747406257407,62.44,172.4,172.31,62.44]
[1747406258306,62.44,172.4,172.36,5.7997]
[1747406258810,62.44,172.4,172.35,5.8001]
[1747406259407,68.2386,172.4,172.36,5.7998]
[1747406259609,62.44,172.4,172.31,62.44]
[1747406260010,20.39809913,172.49,172.31,62.44]
[1747406260208,62.44,172.48,172.31,62.44]
[1747406260910,5.7972,172.44,172.4,5.7984]
[1747406261114,62.44,172.48,172.36,62.44]
[1747406261609,62.44,172.48,172.39,5.7985]
[1747406261812,62.44,172.48,172.36,62.44]
[1747406262003,5.7974,172.44,172.4,5.7985]
[1747406262207,62.44,172.48,172.36,62.44]
[1747406263222,62.44,172.47,172.36,62.44]
[1747406263722,62.44,172.47,172.38,5.7991]
[1747406264121,62.44,172.47,172.36,62.44]
[1747406264626,3.5205,172.49,172.36,62.44]
[1747406264923,124.88,172.46,172.36,62.44]
[1747406265115,124.88,172.46,172.37,1.991]
[1747406265823,5.7976,172.43,172.37,1.991]
[1747406266025,62.44,172.42,172.37,1.991]
[1747406267021,62.44,172.42,172.4,5.7985]
[1747406267216,62.44,172.42,172.37,1.991]
[1747406267423,68.2379,172.42,172.38,5.7991]
[1747406268424,62.44,172.42,172.39,5.7988]
[1747406268627,62.44,172.42,172.37,1.991]
[1747406268827,62.44,172.43,172.37,3.8138]
[1747406269633,62.44,172.43,172.41,5.7981]
[1747406270831,5.797,172.45,172.41,5.7981]
[1747406271025,62.44,172.44,172.41,5.7981]
[1747406271533,62.44,172.44,172.42,5.7978]
[1747406271732,62.44,172.44,172.37,5.6394]
[1747406272332,62.44,172.44,172.41,5.7979]
[1747406273233,5.7975,172.43,172.39,5.7986]
[1747406274137,62.44,172.44,172.37,5.6394]
[1747406274633,62.44,172.44,172.41,5.798]
[1747406275539,62.44,172.46,172.37,5.6394]
[1747406275833,62.42,172.45,172.37,5.6394]
[1747406276033,62.42,172.45,172.43,5.7973]
[1747406276235,62.44,172.46,172.43,5.7973]
[1747406276434,124.86,172.46,172.43,5.7973]
[1747406278637,124.86,172.46,172.44,5.7971]
[1747406278824,5.7959,172.48,172.44,5.7971]
[1747406279028,62.42,172.47,172.44,5.7971]
[1747406279228,62.42,172.47,172.37,16.19304899]
[1747406279635,5.797,172.45,172.41,5.7978]
[1747406279837,62.42,172.47,172.37,16.19304899]
[1747406280236,5.7966,172.46,172.42,5.7976]
[1747406280737,5.797,172.45,172.41,5.798]
[1747406280934,62.42,172.47,172.37,16.19304899]
[1747406281235,5.7966,172.46,172.37,16.19304899]
[1747406281436,62.42,172.46,172.37,16.19304899]
[1747406281631,62.42,172.48,172.37,16.19304899]
[1747406281826,62.42,172.48,172.46,5.7964]
[1747406282032,62.42,172.49,172.41,62.42]
[1747406282233,62.42,172.48,172.41,62.42]
[1747406282429,62.42,172.53,172.43,10.55364899]
[1747406282630,1.9684,172.55,172.44,1.9374]
[1747406282830,62.42,172.54,172.44,68.1367]
[1747406283027,62.42,172.53,172.52,5.7942]
[1747406283529,62.42,172.53,172.44,68.1367]
[1747406284137,68.2141,172.53,172.49,5.7952]
[1747406284836,5.7945,172.52,172.48,5.7957]
[1747406285430,62.42,172.53,172.44,68.1367]
[1747406286837,5.7949,172.51,172.44,68.1367]
[1747406287039,62.42,172.53,172.44,68.1367]
[1747406287937,5.7947,172.52,172.48,5.7957]
[1747406288238,5.7947,172.52,172.44,68.1367]
[1747406288427,5.7945,172.52,172.44,68.1367]
[1747406288628,62.42,172.53,172.44,68.1367]
[1747406289137,5.7946,172.52,172.44,68.1367]
[1747406289740,5.7946,172.52,172.48,5.7956]
[1747406289941,5.7946,172.52,172.44,68.1367]
[1747406290141,68.2142,172.53,172.44,68.1367]
[1747406290340,62.42,172.53,172.44,68.1367]
[1747406290638,5.7946,172.52,172.44,68.1367]
[1747406290837,5.7946,172.52,172.48,5.7956]
[1747406291643,68.2142,172.53,172.49,5.7954]
[1747406291940,62.42,172.53,172.44,68.1367]
[1747406292129,12.52204899,172.6,172.46,10.55364899]
[1747406292330,124.78,172.59,172.46,10.55364899]
[1747406292532,5.7935,172.55,172.51,5.7944]
[1747406293036,68.1735,172.55,172.51,5.7944]
[1747406293237,5.7939,172.54,172.5,5.795]
[1747406293442,62.38,172.55,172.48,62.4]
[1747406293743,5.7943,172.53,172.49,5.7951]
[1747406293944,124.78,172.55,172.48,62.4]
[1747406294337,10.55364899,172.54,172.48,62.4]
[1747406294536,10.55364899,172.54,172.44,68.1167]
[1747406294740,5.795,172.51,172.47,5.7958]
[1747406294939,62.38,172.5,172.44,68.1167]
[1747406295348,62.38,172.5,172.47,5.796]
[1747406295644,68.1753,172.5,172.47,5.796]
[1747406295948,68.1753,172.5,172.46,5.7963]
[1747406296141,68.1753,172.5,172.44,68.1167]
[1747406296445,62.38,172.5,172.44,68.1167]
[1747406297138,68.1752,172.5,172.44,68.1167]
[1747406297647,5.7955,172.49,172.44,68.1167]
[1747406297846,5.7955,172.49,172.44,64.3374]
[1747406298050,62.38,172.5,172.44,64.3374]
[1747406298347,5.7957,172.49,172.45,5.7966]
[1747406298950,5.7953,172.5,172.44,64.3374]
[1747406299154,62.38,172.49,172.44,64.3374]
[1747406299651,62.38,172.49,172.46,5.7962]
[1747406300150,68.1756,172.49,172.45,5.7967]
[1747406300652,62.38,172.49,172.46,5.7964]
[1747406300850,62.38,172.49,172.44,64.3374]
[1747406301852,68.1755,172.49,172.44,64.3374]
[1747406302351,68.1755,172.49,172.45,5.7966]
[1747406302850,68.1755,172.49,172.44,64.3374]
[1747406303051,62.38,172.49,172.46,5.7962]
[1747406303646,62.38,172.49,172.47,5.7961]
[1747406304252,1.8156,172.53,172.44,64.3374]
[1747406304460,62.36,172.53,172.44,64.3374]
[1747406304753,62.36,172.53,172.45,3.8165]
[1747406305458,62.36,172.53,172.44,64.3374]
[1747406305658,62.36,172.52,172.45,5.7966]
[1747406305952,5.7951,172.5,172.44,64.3374]
[1747406306152,62.36,172.49,172.44,64.3374]
[1747406306352,62.36,172.49,172.46,5.7963]
[1747406307351,62.36,172.52,172.44,64.3374]
[1747406307552,62.36,172.51,172.44,64.3374]
[1747406307948,62.36,172.51,172.49,5.7954]
[1747406308560,62.36,172.51,172.5,5.7951]
[1747406308752,62.36,172.52,172.5,5.7951]
[1747406308956,68.154,172.54,172.5,5.7951]
[1747406309153,62.36,172.53,172.5,5.7951]
[1747406309454,62.36,172.53,172.44,68.191]
[1747406309959,62.36,172.53,172.51,5.7946]
[1747406310156,62.36,172.54,172.51,5.7946]
[1747406310464,62.36,172.53,172.52,5.7944]
[1747406310960,62.36,172.54,172.52,5.7944]
[1747406311164,124.72,172.54,172.52,5.7944]
[1747406312159,124.72,172.54,172.51,5.7946]
[1747406312860,124.72,172.54,172.52,5.7942]
[1747406313361,124.72,172.54,172.53,5.7941]
[1747406313862,124.72,172.54,172.52,5.7943]
[1747406314960,62.36,172.58,172.48,62.36]
[1747406315160,124.7,172.58,172.48,62.36]
[1747406315464,62.34,172.57,172.48,62.36]
[1747406316560,68.133,172.57,172.53,5.7939]
[1747406317665,5.793,172.57,172.53,5.7939]
[1747406317865,68.133,172.57,172.52,5.7944]
[1747406318670,5.7932,172.56,172.52,5.7944]
[1747406319570,5.7935,172.55,172.51,5.7946]
[1747406320163,5.7941,172.53,172.48,62.36]
[1747406320556,62.34,172.57,172.48,62.36]
[1747406320756,62.34,172.57,172.49,5.7951]
[1747406321161,62.34,172.57,172.48,62.36]
[1747406321367,5.7948,172.51,172.48,68.1557]
[1747406321567,62.34,172.57,172.48,68.1557]
[1747406321757,62.34,172.57,172.48,62.36]
[1747406321957,5.7946,172.52,172.49,5.7952]
[1747406324477,5.7949,172.51,172.48,62.36]
[1747406324974,5.7949,172.51,172.48,68.1556]
[1747406325778,62.34,172.57,172.49,5.7954]
[1747406326182,62.34,172.57,172.48,62.36]
[1747406326886,5.7942,172.53,172.5,5.7951]
[1747406328082,5.7946,172.52,172.49,5.7954]
[1747406328276,62.34,172.57,172.48,62.36]
[1747406328682,5.7946,172.52,172.49,5.7952]
[1747406329085,5.7942,172.53,172.48,62.36]
[1747406329287,64.1556,172.57,172.48,62.36]
[1747406329592,64.1556,172.57,172.5,5.7949]
[1747406330090,5.7943,172.53,172.5,5.7949]
[1747406331390,5.7945,172.52,172.5,5.7949]
[1747406331793,64.1556,172.57,172.48,62.36]
[1747406331794,74.70924899,172.57,172.48,62.36]
[1747406331995,74.70924899,172.57,172.44,68.131]
[1747406332290,10.55364899,172.54,172.44,68.137]
[1747406332594,5.7964,172.47,172.44,62.34]
[1747406332987,62.3,172.48,172.44,62.34]
[1747406334296,62.34,172.53,172.44,62.34]
[1747406334494,62.34,172.53,172.45,1.8581]
[1747406334688,62.3,172.52,172.45,1.8581]
[1747406334995,5.7951,172.51,172.47,5.7959]
[1747406335491,62.3,172.52,172.45,7.6547]
[1747406335683,62.3,172.52,172.44,62.34]
[1747406336082,5.7953,172.5,172.46,5.7962]
[1747406336496,62.3,172.52,172.44,62.34]
[1747406337295,5.7953,172.5,172.46,5.7963]
[1747406337695,5.7949,172.51,172.48,5.7955]
[1747406338290,62.3,172.51,172.44,62.34]
[1747406339395,62.3,172.51,172.47,5.7959]
[1747406339396,5.7952,172.5,172.47,5.7959]
[1747406339796,62.3,172.51,172.44,62.34]
[1747406340000,62.3,172.51,172.45,5.7965]
[1747406340192,62.3,172.51,172.44,62.34]
[1747406340492,5.7953,172.5,172.46,5.7964]
[1747406340899,5.7953,172.5,172.44,62.34]
[1747406341088,5.7953,172.5,172.47,5.7959]
[1747406341285,62.3,172.51,172.44,62.34]
[1747406341286,68.0949,172.51,172.44,62.34]
[1747406341487,62.3,172.51,172.44,62.34]
[1747406342096,62.3,172.51,172.44,68.137]
[1747406342594,62.3,172.51,172.44,5.797]
[1747406342900,5.7973,172.44,172.4,64.2094]
[1747406343393,5.7973,172.44,172.41,5.7981]
[1747406343593,62.28,172.45,172.4,64.2094]
[1747406344600,5.7973,172.44,172.42,5.7977]
[1747406345097,62.28,172.45,172.43,5.7974]
[1747406346000,62.28,172.45,172.44,5.7972]
[1747406347802,62.3,172.5,172.46,5.7964]
[1747406348101,5.7949,172.51,172.41,10.55364899]
[1747406348403,62.28,172.5,172.41,10.55364899]
[1747406348701,62.28,172.5,172.42,3.8467]
[1747406348902,62.28,172.5,172.44,5.7969]
[1747406349108,5.7966,172.46,172.4,64.2094]
[1747406349604,62.28,172.45,172.4,1.9094]
[1747406349802,62.28,172.44,172.4,1.9094]
[1747406350195,62.28,172.44,172.41,5.7981]
[1747406350504,62.28,172.44,172.4,1.9094]
[1747406350709,62.28,172.44,172.4,7.7077]
[1747406350899,68.0774,172.44,172.4,1.9094]
[1747406351100,62.28,172.44,172.41,5.7979]
[1747406351703,62.28,172.44,172.41,5.7981]
[1747406351908,62.28,172.44,172.4,1.9094]
[1747406352404,62.28,172.44,172.41,5.7981]
[1747406352600,62.28,172.44,172.4,1.9094]
[1747406353005,62.28,172.44,172.42,5.7975]
[1747406353511,62.28,172.44,172.36,62.32]
[1747406353713,124.6,172.44,172.36,62.32]
[1747406354003,124.6,172.44,172.35,1.8105]
[1747406354210,124.6,172.44,172.32,62.32]
[1747406354605,5.7985,172.4,172.37,5.7994]
[1747406354808,62.28,172.39,172.37,5.7994]
[1747406355012,62.28,172.39,172.32,62.32]
[1747406355211,62.28,172.39,172.38,5.7992]
[1747406355407,62.28,172.42,172.33,10.55364899]
[1747406355604,62.28,172.42,172.36,10.55364899]
[1747406355805,62.28,172.42,172.36,72.87364899]
[1747406356307,62.28,172.42,172.36,62.32]
[1747406357812,62.28,172.42,172.39,5.7987]
[1747406358011,62.28,172.42,172.36,62.32]
[1747406358315,62.28,172.42,172.4,5.7985]
[1747406358811,62.28,172.42,172.36,62.32]
[1747406359009,62.28,172.42,172.39,5.7987]
[1747406359413,62.28,172.42,172.36,62.32]
[1747406359819,62.28,172.42,172.4,5.7985]
[1747406360017,62.28,172.42,172.36,62.32]
[1747406360316,62.28,172.42,172.39,5.7986]
[1747406360713,62.28,172.42,172.36,62.32]
[1747406361117,5.7983,172.41,172.37,5.7994]
[1747406361316,62.28,172.42,172.34,10.55364899]
[1747406361510,62.28,172.42,172.32,62.32]
[1747406362216,5.7998,172.37,172.33,5.8008]
[1747406362412,62.28,172.36,172.3,5.5343]
[1747406362823,62.28,172.36,172.28,62.32]
[1747406363212,5.8004,172.35,172.31,5.8013]
[1747406363516,5.8004,172.35,172.28,62.32]
[1747406363819,62.28,172.36,172.28,62.32]
[1747406364319,62.28,172.36,172.33,5.8006]
[1747406365218,62.28,172.36,172.28,62.32]
[1747406366921,14.33574899,172.43,172.3,10.55364899]
[1747406367112,124.58,172.42,172.3,10.55364899]
[1747406367423,124.58,172.42,172.31,1.8815]
[1747406368621,5.7997,172.37,172.33,5.8007]
[1747406368816,62.28,172.36,172.31,1.8815]
[1747406369716,62.28,172.36,172.34,5.8003]
[1747406370320,62.28,172.36,172.31,1.8815]
[1747406370721,62.28,172.36,172.33,5.8007]
[1747406370921,62.28,172.36,172.31,1.8815]
[1747406371226,62.28,172.36,172.34,5.8006]
[1747406373731,62.28,172.36,172.33,5.8008]
[1747406373928,62.28,172.36,172.31,1.8815]
[1747406374931,62.28,172.36,172.34,5.8004]
[1747406375627,62.28,172.36,172.28,10.55364899]
[1747406375932,68.0802,172.36,172.28,10.55364899]
[1747406376329,68.0801,172.36,172.31,5.8014]
[1747406376726,62.28,172.36,172.31,5.8014]
[1747406377028,5.8008,172.34,172.28,10.55364899]
[1747406377228,62.28,172.36,172.28,10.55364899]
[1747406377426,68.0801,172.36,172.32,5.8013]
[1747406378028,62.28,172.36,172.33,5.8009]
[1747406378235,62.28,172.36,172.28,10.55364899]
[1747406378433,62.28,172.36,172.33,5.8008]
[1747406378734,62.28,172.36,172.28,10.55364899]
[1747406378933,62.28,172.36,172.33,5.8007]
[1747406379231,68.0801,172.36,172.28,10.55364899]
[1747406379734,62.28,172.36,172.33,5.8009]
[1747406380234,62.28,172.36,172.28,10.55364899]
[1747406380934,5.8005,172.35,172.31,5.8014]
[1747406381135,5.8005,172.35,172.28,10.55364899]
[1747406381533,5.8007,172.34,172.31,5.8014]
[1747406381834,62.28,172.36,172.31,5.8014]
[1747406382034,68.0801,172.36,172.32,5.8011]
[1747406382834,5.8003,172.35,172.32,5.8011]
[1747406384236,62.28,172.36,172.28,10.55364899]
[1747406384938,5.8004,172.35,172.28,10.55364899]
[1747406385337,62.28,172.36,172.28,10.55364899]
[1747406385537,62.28,172.36,172.32,5.801]
[1747406386237,68.0799,172.36,172.32,5.801]
[1747406386538,62.28,172.36,172.32,5.801]
[1747406387333,62.28,172.36,172.31,5.8014]
[1747406387541,62.28,172.36,172.27,72.85364899]
[1747406388037,68.0801,172.36,172.32,5.8011]
[1747406388938,68.0801,172.36,172.33,5.8009]
[1747406389240,62.28,172.36,172.33,5.8009]
[1747406390039,68.0799,172.36,172.33,5.8009]
[1747406390541,68.0799,172.36,172.32,5.8011]
[1747406390838,5.8004,172.35,172.32,5.8011]
[1747406391035,5.8004,172.35,172.27,72.85364899]
[1747406391036,62.3,172.35,172.27,62.3]
[1747406391236,62.3,172.35,172.29,5.8021]
[1747406391443,5.8008,172.34,172.25,12.44644899]
[1747406391639,64.2135,172.35,172.33,5.8009]
[1747406391839,64.2135,172.35,172.25,12.44644899]
[1747406392228,64.2135,172.35,172.32,5.8012]
[1747406392437,64.2135,172.35,172.25,12.44644899]
[1747406392639,70.0138,172.35,172.3,5.8016]
[1747406393041,70.0138,172.35,172.25,12.44644899]
[1747406393440,5.8007,172.34,172.25,12.44644899]
[1747406393631,64.2135,172.35,172.25,12.44644899]
[1747406395047,5.8015,172.32,172.27,5.8029]
[1747406395242,68.0615,172.32,172.27,5.8029]
[1747406395433,62.26,172.32,172.25,12.44644899]
[1747406395638,5.8018,172.31,172.26,5.8031]
[1747406395839,62.26,172.32,172.25,10.55364899]
[1747406396142,68.0618,172.31,172.25,10.55364899]
[1747406397142,62.26,172.31,172.25,10.55364899]
[1747406397747,62.26,172.31,172.27,5.8028]
[1747406398346,62.26,172.31,172.28,5.8026]
[1747406399839,62.26,172.31,172.29,5.8023]
[1747406400046,62.24,172.33,172.27,10.55364899]
[1747406401345,62.24,172.33,172.31,5.8016]
[1747406401842,62.24,172.33,172.3,5.8018]
[1747406402240,62.24,172.33,172.27,10.55364899]
[1747406402746,62.24,172.33,172.31,5.8016]
[1747406403045,62.24,172.33,172.27,10.55364899]
[1747406403245,62.24,172.33,172.31,5.8016]
[1747406403647,62.24,172.33,172.27,10.55364899]
[1747406403841,62.24,172.33,172.31,5.8013]
[1747406404040,62.24,172.33,172.27,10.55364899]
[1747406404346,62.24,172.33,172.3,5.8018]
[1747406404750,62.24,172.33,172.27,10.55364899]
[1747406404938,62.24,172.33,172.24,10.55364899]
[1747406405649,5.8022,172.3,172.26,5.8032]
[1747406405848,62.24,172.29,172.21,62.26]
[1747406406052,62.24,172.29,172.22,10.55364899]
[1747406406245,62.24,172.29,172.25,5.8033]
[1747406406749,62.24,172.29,172.22,10.55364899]
[1747406408154,68.0424,172.29,172.24,5.8037]
[1747406408449,68.0424,172.29,172.22,10.55364899]
[1747406408751,68.0424,172.29,172.24,5.8038]
[1747406408948,5.8028,172.28,172.21,62.26]
[1747406409154,62.24,172.29,172.21,62.26]
[1747406409452,62.24,172.29,172.18,10.55364899]
[1747406410052,5.8028,172.28,172.18,10.55364899]
[1747406410252,62.26,172.28,172.18,10.55364899]
[1747406410553,68.0628,172.28,172.23,5.8041]
[1747406410749,62.26,172.28,172.18,10.55364899]
[1747406411153,5.8032,172.27,172.18,10.55364899]
[1747406411347,62.26,172.28,172.18,10.55364899]
[1747406411654,5.803,172.27,172.22,5.8044]
[1747406411854,62.26,172.28,172.18,10.55364899]
[1747406412249,5.8032,172.27,172.18,10.55364899]
[1747406412451,62.26,172.28,172.18,10.55364899]
[1747406412857,5.8032,172.27,172.22,5.8046]
[1747406413258,12.26454899,172.34,172.17,62.26]
[1747406413259,1.0106437,172.4,172.21,10.55364899]
[1747406413458,5.8011,172.33,172.28,5.8024]
[1747406413760,62.24,172.33,172.23,10.55364899]
[1747406413954,5.8023,172.29,172.23,10.55364899]
[1747406414155,62.24,172.28,172.21,1.9891]
[1747406415158,62.24,172.28,172.25,5.8034]
[1747406415355,1.963,172.31,172.14,3.6568]
[1747406415558,1.845,172.27,172.14,10.55364899]
[1747406415857,1.845,172.27,172.16,5.8064]
[1747406415858,126.2311,172.26,172.16,5.8064]
[1747406416246,5.8051,172.21,172.17,5.8061]
[1747406416460,124.52,172.2,172.17,5.8061]
[1747406416761,124.52,172.2,172.13,10.55364899]
[1747406417359,124.52,172.2,172.18,5.8058]
[1747406417762,124.52,172.2,172.13,10.55364899]
[1747406418361,124.52,172.2,172.17,5.8061]
[1747406418566,124.52,172.2,172.13,10.55364899]
[1747406419166,124.52,172.2,172.09,5.6502]
[1747406419365,10.55364899,172.18,172.01,10.55364899]
[1747406419664,5.8081,172.12,172.04,5.8107]
[1747406419868,128.1261,172.11,172.05,1.16245277]
[1747406420658,5.8092,172.09,172.05,1.16245277]
[1747406421161,124.52,172.08,171.93,6.81068943]
[1747406421363,1.8659,172.07,171.95,10.55364899]
[1747406421757,7.6757,172.07,172.02,5.8111]
[1747406421963,1.8659,172.07,172.02,5.8111]
[1747406422264,1.8659,172.07,172.03,1.16258792]
[1747406423363,5.8107,172.04,172.03,1.16258792]
[1747406423667,124.48,172.04,171.93,8.65058943]
[1747406423861,1.8248,172.03,171.94,1.16319646]
[1747406424172,12.37844899,172.03,171.94,1.16319646]
[1747406424568,10.55364899,172.0,171.94,1.16319646]
[1747406424760,1.9597,171.99,171.94,1.16319646]
[1747406425066,1.9597,171.99,171.85,10.55364899]
[1747406425067,10.55364899,171.97,171.84,5.8097]
[1747406425260,512.45364899,171.97,171.85,1.16380564]
[1747406425465,125.06,171.96,171.85,1.16380564]
[1747406425661,125.08,171.95,171.85,1.16380564]
[1747406425863,5.8147,171.93,171.85,1.16380564]
[1747406426064,12.45274899,171.94,171.85,1.16380564]
[1747406426269,10.55364899,171.89,171.86,1.16373792]
[1747406426566,126.38,171.88,171.73,10.55364899]
[1747406427470,10.55364899,171.83,171.72,6.81068943]
[1747406427677,10.55364899,171.8,171.72,6.81068943]
[1747406427974,130.28,171.79,171.66,10.55364899]
[1747406428271,130.28,171.79,171.64,16.29924899]
[1747406428465,130.28,171.79,171.64,5.7456]
[1747406428663,130.28,171.79,171.64,16.29924899]
[1747406428864,10.55364899,171.78,171.64,16.29924899]
[1747406429071,10.55364899,171.78,171.62,10.55364899]
[1747406429463,10.55364899,171.76,171.61,10.55364899]
[1747406429663,131.06,171.75,171.59,12.90405483]
[1747406430263,17.0404052,171.73,171.59,12.90405483]
[1747406430569,131.26,171.72,171.59,12.90405483]
[1747406430772,502.46,171.71,171.59,12.90405483]
[1747406431069,131.34,171.7,171.59,12.90405483]
[1747406431271,131.34,171.69,171.59,12.90405483]
[1747406431466,66.14,171.68,171.59,12.90405483]
[1747406431663,502.46,171.71,171.6,17.0404052]
[1747406431866,502.46,171.79,171.6,82.2204052]
[1747406432161,132.66427989,171.78,171.64,17.0404052]
[1747406432363,5.8201,171.77,171.67,5.8229]
[1747406432564,5.8201,171.77,171.65,5.7119]
[1747406432866,1.16441546,171.76,171.65,5.7119]
[1747406433169,131.58,171.75,171.65,5.7119]
[1747406433359,1.16441546,171.76,171.65,5.7119]
[1747406433564,1.16441546,171.76,171.75,5.8205]
[1747406433764,67.56441546,171.76,171.68,17.0404052]
[1747406433961,1.16441546,171.76,171.73,5.8209]
[1747406434270,66.44,171.75,171.68,17.0404052]
[1747406434475,66.42,171.74,171.73,5.8212]
[1747406434674,1.16441546,171.76,171.68,17.0404052]
[1747406434871,66.46,171.79,171.68,17.0404052]
[1747406435080,1.16427989,171.78,171.72,17.0404052]
[1747406435566,1.16427989,171.78,171.77,5.8199]
[1747406435965,1.16427989,171.78,171.72,17.0404052]
[1747406436173,1.16427989,171.78,171.75,5.8204]
[1747406436373,1.16427989,171.78,171.72,17.0404052]
[1747406436766,1.16427989,171.78,171.7,65.2]
[1747406437171,66.36427989,171.78,171.7,65.2]
[1747406437376,1.16427989,171.78,171.73,5.8209]
[1747406437674,66.44,171.77,171.7,65.2]
[1747406437972,1.16441546,171.76,171.73,5.8211]
[1747406438379,1.16441546,171.76,171.72,17.0404052]
[1747406438971,1.16441546,171.76,171.73,5.8209]
[1747406439172,1.16441546,171.76,171.72,17.0404052]
[1747406439575,1.16441546,171.76,171.75,5.8205]